[Event "11th LCC Super Blitz 2019"]
[Site "London"]
[Date "2019.12.08"]
[Round "3.3"]
[White "Grover, Sahaj"]
[Black "Roberson, Peter T"]
[Result "1-0"]
[ECO "C11"]
[WhiteElo "2486"]
[BlackElo "2282"]
[Annotator "ChessBase"]
[PlyCount "87"]
[EventDate "2019.12.08"]
[EventType "swiss"]
[EventCountry "ENG"]
[SourceTitle "playchess.com"]
[Source "ChessBase"]
[SourceQuality "1"]
[TimeControl "180+2"]

1. e4 {[%emt 0:00:00]} e6 {[%emt 0:00:00]} 2. d4 {[%emt 0:00:01]} d5 {[%emt 0:00:00]} 3. Nc3 {[%emt 0:00:01]} Nf6 {[%emt 0:00:01]} 4. e5 {[%emt 0:00:01]} Nfd7 {[%emt 0:00:01]} 5. f4 {[%emt 0:00:01]} c5 {[%emt 0:00:00]} 6. Nf3 {[%emt 0:00:01]} Nc6 {[%emt 0:00:00]} 7. Be3 {[%emt 0:00:03]} a6 {[%emt 0:00:01]} 8. Qd2 {[%emt 0:00:02]} Be7 {[%emt 0:00:01]} 9. Be2 {[%emt 0:00:07]} b5 {[%emt 0:00:01]} 10. dxc5 {[%emt 0:00:06]} Nxc5 {[%emt 0:00:03]} 11. Nd4 {[%emt 0:00:11]} Bb7 {[%emt 0:00:05]} 12. Nxc6 {[%emt 0:00:14]} Bxc6 {[%emt 0:00:01]} 13. Bd4 {[%emt 0:00:00]} b4 {[%emt 0:00:18]} 14. Nd1 {[%emt 0:00:03]} Ne4 {[%emt 0:00:01]} 15. Qe3 {[%emt 0:00:02]} f5 {[%emt 0:00:21]} 16. exf6 {[%emt 0:00:04]} Bxf6 {[%emt 0:00:04]} 17. Nf2 {[%emt 0:00:07]} O-O {[%emt 0:00:22]} 18. Bxf6 {[%emt 0:01:03]} Qxf6 {[%emt 0:00:02]} 19. Nd3 {[%emt 0:00:01]} Bb5 {[%emt 0:00:10]} 20. O-O {[%emt 0:00:04]} Rac8 {[%emt 0:00:23]} 21. Rac1 {[%emt 0:00:01]} Bxd3 {[%emt 0:00:19]} 22. cxd3 {[%emt 0:00:01]} Nd6 {[%emt 0:00:01]} 23. Bg4 {[%emt 0:00:34]} Nf5 {[%emt 0:00:08]} 24. Bxf5 {[%emt 0:00:29]} exf5 {[%emt 0:00:07]} 25. Rf2 {[%emt 0:00:05]} Rxc1+ {[%emt 0:00:16]} 26. Qxc1 {[%emt 0:00:01]} Qd4 {[%emt 0:00:03]} 27. Qc2 {[%emt 0:00:20]} Re8 {[%emt 0:00:02]} 28. Kf1 {[%emt 0:00:00]} Qe3 {[%emt 0:00:04]} 29. Qd2 {[%emt 0:00:05]} Qd4 {[%emt 0:00:11]} 30. Qc2 {[%emt 0:00:01]} h6 {[%emt 0:00:07]} 31. g3 {[%emt 0:00:01]} a5 {[%emt 0:00:27]} 32. Kg2 {[%emt 0:00:01]} Kh7 {[%emt 0:00:05]} 33. Qc6 {[%emt 0:00:01]} Re3 {[%emt 0:00:04]} 34. Qb5 {[%emt 0:00:11]} Rxd3 {[%emt 0:00:04]} 35. Qxa5 {[%emt 0:00:04]} Qe4+ {[%emt 0:00:01]} 36. Kh3 {[%emt 0:00:00]} Qe3 {[%emt 0:00:08]} 37. Qb5 {[%emt 0:00:02]} Rd4 {[%emt 0:00:06]} 38. Rc2 {[%emt 0:00:02]} Qe4 {[%emt 0:00:03]} 39. Qe2 {[%emt 0:00:01]} Qxe2 {[%emt 0:00:03]} 40. Rxe2 {[%emt 0:00:00]} Kg6 {[%emt 0:00:01]} 41. Kg2 {[%emt 0:00:00]} Re4 {[%emt 0:00:01]} 42. Rd2 {[%emt 0:00:01]} d4 {[%emt 0:00:01]} 43. Kf3 {[%emt 0:00:06]} Kf6 {[%emt 0:00:00]} 44. Re2 {[%emt 0:00:01]} 1-0

[Event "11th LCC Super Blitz 2019"]
[Site "London"]
[Date "2019.12.08"]
[Round "3.3"]
[White "Arkell, Keith C"]
[Black "Ratnesan, Ranesh"]
[Result "1/2-1/2"]
[ECO "D23"]
[WhiteElo "2453"]
[BlackElo "2213"]
[Annotator "ChessBase"]
[PlyCount "116"]
[EventDate "2019.12.08"]
[EventType "swiss"]
[EventCountry "ENG"]
[SourceTitle "playchess.com"]
[Source "ChessBase"]
[SourceQuality "1"]
[TimeControl "180+2"]

1. d4 {[%emt 0:00:00]} d5 {[%emt 0:00:00]} 2. Nf3 {[%emt 0:00:03]} Nf6 {[%emt 0:00:00]} 3. c4 {[%emt 0:00:01]} c6 {[%emt 0:00:02]} 4. Qc2 {[%emt 0:00:03]} dxc4 {[%emt 0:00:02]} 5. Qxc4 {[%emt 0:00:00]} Bf5 {[%emt 0:00:02]} 6. Nc3 {[%emt 0:00:02]} e6 {[%emt 0:00:01]} 7. g3 {[%emt 0:00:02]} Be7 {[%emt 0:00:02]} 8. Bg2 {[%emt 0:00:01]} Nbd7 {[%emt 0:00:03]} 9. O-O {[%emt 0:00:03]} O-O {[%emt 0:00:04]} 10. Bg5 {[%emt 0:00:01]} h6 {[%emt 0:00:03]} 11. Bxf6 {[%emt 0:00:02]} Nxf6 {[%emt 0:00:02]} 12. Qb3 {[%emt 0:00:02]} Qb6 {[%emt 0:00:02]} 13. e3 {[%emt 0:00:10]} Qxb3 {[%emt 0:00:19]} 14. axb3 {[%emt 0:00:01]} a6 {[%emt 0:00:01]} 15. Rfc1 {[%emt 0:00:04]} Rac8 {[%emt 0:00:08]} 16. Na4 {[%emt 0:00:01]} Be4 {[%emt 0:00:13]} 17. Ne5 {[%emt 0:00:03]} Rfd8 {[%emt 0:00:16]} 18. h4 {[%emt 0:00:20]} Bb4 {[%emt 0:00:09]} 19. Bxe4 {[%emt 0:00:16]} Nxe4 {[%emt 0:00:01]} 20. Nd3 {[%emt 0:00:02]} Be7 {[%emt 0:00:04]} 21. b4 {[%emt 0:00:07]} g5 {[%emt 0:00:06]} 22. hxg5 {[%emt 0:00:01]} hxg5 {[%emt 0:00:01]} 23. Nac5 {[%emt 0:00:01]} Nd6 {[%emt 0:00:05]} 24. Ne5 {[%emt 0:00:04]} Kg7 {[%emt 0:00:05]} 25. Kg2 {[%emt 0:00:02]} Rh8 {[%emt 0:00:04]} 26. b3 {[%emt 0:00:03]} Rh7 {[%emt 0:00:14]} 27. Nc4 {[%emt 0:00:02]} Rc7 {[%emt 0:00:12]} 28. g4 {[%emt 0:00:14]} Nb5 {[%emt 0:00:06]} 29. Ne5 {[%emt 0:00:08]} Bxc5 {[%emt 0:00:08]} 30. bxc5 {[%emt 0:00:02]} f6 {[%emt 0:00:04]} 31. Nc4 {[%emt 0:00:03]} Kg6 {[%emt 0:00:02]} 32. Rh1 {[%emt 0:00:02]} Rxh1 {[%emt 0:00:09]} 33. Rxh1 {[%emt 0:00:01]} Kg7 {[%emt 0:00:01]} 34. Kf3 {[%emt 0:00:02]} Nc3 {[%emt 0:00:02]} 35. Rc1 {[%emt 0:00:03]} Nd5 {[%emt 0:00:02]} 36. Nd6 {[%emt 0:00:02]} Rd7 {[%emt 0:00:05]} 37. Rh1 {[%emt 0:00:07]} b5 {[%emt 0:00:09]} 38. Ra1 {[%emt 0:00:14]} Ra7 {[%emt 0:00:02]} 39. Nc8 {[%emt 0:00:06]} Ra8 {[%emt 0:00:01]} 40. Nb6 {[%emt 0:00:01]} Ra7 {[%emt 0:00:02]} 41. e4 {[%emt 0:00:06]} Nb4 {[%emt 0:00:05]} 42. Ra5 {[%emt 0:00:11]} Nc2 {[%emt 0:00:07]} 43. d5 {[%emt 0:00:02]} exd5 {[%emt 0:00:06]} 44. exd5 {[%emt 0:00:01]} cxd5 {[%emt 0:00:05]} 45. Nxd5 {[%emt 0:00:01]} Nd4+ {[%emt 0:00:01]} 46. Ke4 {[%emt 0:00:01]} Nxb3 {[%emt 0:00:01]} 47. Ra2 {[%emt 0:00:10]} Nxc5+ {[%emt 0:00:03]} 48. Kd4 {[%emt 0:00:01]} Ne6+ {[%emt 0:00:02]} 49. Ke4 {[%emt 0:00:00]} Nc5+ {[%emt 0:00:02]} 50. Kd4 {[%emt 0:00:12]} Nb7 {[%emt 0:00:16]} 51. Nc7 {[%emt 0:00:04]} Nd6 {[%emt 0:00:03]} 52. Nxa6 {[%emt 0:00:07]} Kg6 {[%emt 0:00:08]} 53. f3 {[%emt 0:00:03]} f5 {[%emt 0:00:07]} 54. Kc5 {[%emt 0:00:00]} Nf7 {[%emt 0:00:04]} 55. Kb6 {[%emt 0:00:01]} Re7 {[%emt 0:00:02]} 56. Nc5 {[%emt 0:00:12]} fxg4 {[%emt 0:00:02]} 57. fxg4 {[%emt 0:00:01]} Ne5 {[%emt 0:00:02]} 58. Rg2 {[%emt 0:00:08]} Nd7+ {[%emt 0:00:02]} 1/2-1/2

[Event "11th LCC Super Blitz 2019"]
[Site "London"]
[Date "2019.12.08"]
[Round "3.4"]
[White "Wallace, John Paul"]
[Black "Royal, Shreyas"]
[Result "0-1"]
[ECO "D31"]
[WhiteElo "2344"]
[BlackElo "1941"]
[Annotator "NA"]
[PlyCount "61"]
[EventDate "2019.12.08"]
[EventType "swiss"]
[EventCountry "ENG"]
[SourceTitle "playchess.com"]
[Source "ChessBase"]
[SourceQuality "1"]
[TimeControl "180+2"]

1. d4 {[%emt 0:00:00]} d5 {[%emt 0:00:00]} 2. c4 {[%emt 0:00:00]} e6 {[%emt 0:00:00]} 3. Nc3 {[%emt 0:00:00]} Be7 {[%emt 0:00:01]} 4. cxd5 {[%emt 0:00:02]} exd5 {[%emt 0:00:01]} 5. Bf4 {[%emt 0:00:01]} c6 {[%emt 0:00:05]} 6. e3 {[%emt 0:00:00]} Bf5 {[%emt 0:00:01]} 7. Nge2 {[%emt 0:00:06]} Nf6 {[%emt 0:00:03]} 8. Ng3 {[%emt 0:00:01]} Bg6 {[%emt 0:00:02]} 9. Bd3 {[%emt 0:00:04]} Bxd3 {[%emt 0:00:05]} 10. Qxd3 {[%emt 0:00:02]} Nbd7 {[%emt 0:00:01]} 11. O-O {[%emt 0:00:11]} O-O {[%emt 0:00:02]} 12. f3 {[%emt 0:00:05]} Re8 {[%emt 0:00:03]} 13. Rad1 {[%emt 0:00:04]} b5 {[%emt 0:00:30]} 14. e4 {[%emt 0:00:04]} b4 {[%emt 0:00:03]} 15. Nce2 {[%emt 0:00:03]} dxe4 {[%emt 0:00:01]} 16. fxe4 {[%emt 0:00:01]} c5 {[%emt 0:00:07]} 17. Nf5 {[%emt 0:01:24]} Bf8 {[%emt 0:00:13]} 18. Qg3 {[%emt 0:00:03]} Kh8 {[%emt 0:00:24]} 19. e5 {[%emt 0:00:12]} Nh5 {[%emt 0:00:14]} 20. Qh3 {[%emt 0:00:18]} Nxf4 {[%emt 0:00:07]} 21. Rxf4 {[%emt 0:00:13]} Nxe5 {[%emt 0:00:23]} 22. d5 {[%emt 0:00:25]} Ng6 {[%emt 0:00:04]} 23. Rf2 {[%emt 0:00:03]} c4 {[%emt 0:00:07]} 24. Kf1 {[%emt 0:00:06]} Bc5 {[%emt 0:00:01]} 25. Rf3 {[%emt 0:00:02]} Qg5 {[%emt 0:00:24]} 26. d6 {[%emt 0:00:05]} Rxe2 {[%emt 0:00:09]} 27. Kxe2 {[%emt 0:00:05]} Nf4+ {[%emt 0:00:00]} 28. Rxf4 {[%emt 0:00:03]} Qxf4 {[%emt 0:00:01]} 29. Qf3 {[%emt 0:00:10]} Re8+ {[%emt 0:00:13]} 30. Kf1 {[%emt 0:00:02]} Qxh2 {[%emt 0:00:02]} 31. Ne7 {[%emt 0:00:07]} 0-1

[Event "11th LCC Super Blitz 2019"]
[Site "London"]
[Date "2019.12.08"]
[Round "3.4"]
[White "Joslin, Tim"]
[Black "Mortazavi, Ali"]
[Result "0-1"]
[ECO "B14"]
[WhiteElo "1822"]
[BlackElo "2333"]
[Annotator "NA"]
[PlyCount "50"]
[EventDate "2019.12.08"]
[EventType "swiss"]
[EventCountry "ENG"]
[SourceTitle "playchess.com"]
[Source "ChessBase"]
[SourceQuality "1"]
[TimeControl "180+2"]

1. e4 {[%emt 0:00:00]} c6 {[%emt 0:00:00]} 2. d4 {[%emt 0:00:02]} d5 {[%emt 0:00:00]} 3. exd5 cxd5 {[%emt 0:00:00]} 4. c4 {[%emt 0:00:02]} Nf6 {[%emt 0:00:01]} 5. Nc3 {[%emt 0:00:02]} g6 {[%emt 0:00:00]} 6. Be3 {[%emt 0:00:08]} Bg7 {[%emt 0:00:01]} 7. Qd2 {[%emt 0:00:02]} O-O {[%emt 0:00:01]} 8. Nf3 {[%emt 0:00:03]} Nc6 {[%emt 0:00:02]} 9. Bh6 {[%emt 0:00:09]} Ne4 {[%emt 0:00:11]} 10. Nxe4 {[%emt 0:00:16]} dxe4 {[%emt 0:00:01]} 11. Bxg7 {[%emt 0:00:02]} Kxg7 {[%emt 0:00:01]} 12. d5 {[%emt 0:00:22]} exf3 {[%emt 0:00:03]} 13. dxc6 {[%emt 0:00:02]} Qxd2+ {[%emt 0:00:07]} 14. Kxd2 {[%emt 0:00:01]} Rd8+ {[%emt 0:00:16]} 15. Kc2 {[%emt 0:00:07]} Bf5+ {[%emt 0:00:01]} 16. Kc3 {[%emt 0:00:03]} fxg2 {[%emt 0:00:06]} 17. Bxg2 {[%emt 0:00:02]} Rd3+ {[%emt 0:00:02]} 18. Kb4 {[%emt 0:00:08]} bxc6 {[%emt 0:00:04]} 19. Bxc6 {[%emt 0:00:13]} Rb8+ {[%emt 0:00:07]} 20. Ka4 {[%emt 0:00:02]} Rd6 {[%emt 0:00:06]} 21. Bb5 {[%emt 0:00:25]} a6 {[%emt 0:00:00]} 22. Rhe1 {[%emt 0:00:07]} Kf6 {[%emt 0:00:31]} 23. a3 {[%emt 0:00:37]} Bd3 {[%emt 0:00:14]} 24. b4 {[%emt 0:00:13]} axb5+ {[%emt 0:00:08]} 25. cxb5 {[%emt 0:00:02]} Bc2+ {[%emt 0:00:02]} 0-1

[Event "11th LCC Super Blitz 2019"]
[Site "London"]
[Date "2019.12.08"]
[Round "3.5"]
[White "Willow, Jonah B"]
[Black "Petrov, Vladimir Sergeev"]
[Result "1-0"]
[ECO "B50"]
[WhiteElo "2355"]
[BlackElo "2355"]
[Annotator "NA"]
[PlyCount "61"]
[EventDate "2019.12.08"]
[EventType "swiss"]
[EventCountry "ENG"]
[SourceTitle "playchess.com"]
[Source "ChessBase"]
[SourceQuality "1"]
[TimeControl "180+2"]

1. e4 {[%emt 0:00:00]} c5 {[%emt 0:00:00]} 2. Nf3 {[%emt 0:00:00]} d6 {[%emt 0:00:01]} 3. Nc3 {[%emt 0:00:06]} Nf6 {[%emt 0:00:03]} 4. e5 {[%emt 0:00:01]} dxe5 {[%emt 0:00:05]} 5. Nxe5 {[%emt 0:00:01]} Nbd7 {[%emt 0:00:04]} 6. d4 {[%emt 0:00:01]} cxd4 {[%emt 0:00:31]} 7. Qxd4 {[%emt 0:00:02]} Nxe5 {[%emt 0:00:02]} 8. Qxe5 {[%emt 0:00:01]} e6 {[%emt 0:00:04]} 9. Bg5 {[%emt 0:01:08]} Be7 {[%emt 0:00:22]} 10. Bb5+ {[%emt 0:00:01]} Bd7 {[%emt 0:00:24]} 11. O-O-O {[%emt 0:00:30]} O-O {[%emt 0:00:02]} 12. Bxf6 {[%emt 0:00:03]} Bxf6 {[%emt 0:00:06]} 13. Qg3 {[%emt 0:00:50]} Bxc3 {[%emt 0:00:08]} 14. bxc3 {[%emt 0:00:13]} Qa5 {[%emt 0:00:28]} 15. Bxd7 {[%emt 0:00:04]} Qxa2 {[%emt 0:00:01]} 16. Qd3 {[%emt 0:00:12]} Rad8 {[%emt 0:00:40]} 17. Kd2 {[%emt 0:00:02]} Qa5 {[%emt 0:00:06]} 18. Ke2 {[%emt 0:00:06]} e5 {[%emt 0:00:07]} 19. Qe3 {[%emt 0:00:11]} Rxd7 {[%emt 0:00:05]} 20. Rxd7 {[%emt 0:00:01]} e4 {[%emt 0:00:04]} 21. Rd2 {[%emt 0:00:02]} f5 {[%emt 0:00:06]} 22. Rhd1 {[%emt 0:00:04]} Qb5+ {[%emt 0:00:03]} 23. Ke1 {[%emt 0:00:01]} f4 {[%emt 0:00:02]} 24. Qd4 {[%emt 0:00:03]} e3 {[%emt 0:00:02]} 25. Qd5+ {[%emt 0:00:01]} Qxd5 {[%emt 0:00:04]} 26. Rxd5 {[%emt 0:00:01]} f3 {[%emt 0:00:02]} 27. gxf3 {[%emt 0:00:02]} exf2+ {[%emt 0:00:03]} 28. Kxf2 {[%emt 0:00:00]} b6 {[%emt 0:00:02]} 29. Rd8 {[%emt 0:00:02]} a5 {[%emt 0:00:01]} 30. Rxf8+ {[%emt 0:00:02]} Kxf8 {[%emt 0:00:02]} 31. Rb1 {[%emt 0:00:01]} 1-0

[Event "11th LCC Super Blitz 2019"]
[Site "London"]
[Date "2019.12.08"]
[Round "3.5"]
[White "Cox, John J"]
[Black "Phillips, David"]
[Result "1-0"]
[ECO "A10"]
[WhiteElo "2346"]
[BlackElo "1810"]
[Annotator "NA"]
[PlyCount "57"]
[EventDate "2019.12.08"]
[EventType "swiss"]
[EventCountry "ENG"]
[SourceTitle "playchess.com"]
[Source "ChessBase"]
[SourceQuality "1"]
[TimeControl "180+2"]

1. c4 {[%emt 0:00:01]} f5 {[%emt 0:00:04]} 2. g3 {[%emt 0:00:01]} Nf6 {[%emt 0:00:03]} 3. Bg2 {[%emt 0:00:01]} e6 {[%emt 0:00:04]} 4. Nc3 {[%emt 0:00:01]} Be7 {[%emt 0:00:04]} 5. Nf3 {[%emt 0:00:01]} O-O {[%emt 0:00:03]} 6. O-O {[%emt 0:00:02]} d6 {[%emt 0:00:04]} 7. b3 {[%emt 0:00:05]} e5 {[%emt 0:00:11]} 8. Bb2 {[%emt 0:00:01]} Qe8 {[%emt 0:00:12]} 9. d4 {[%emt 0:00:11]} e4 {[%emt 0:00:18]} 10. Ne1 {[%emt 0:00:01]} c6 {[%emt 0:00:36]} 11. d5 {[%emt 0:00:08]} Nbd7 {[%emt 0:00:08]} 12. f3 {[%emt 0:00:02]} Qg6 {[%emt 0:00:51]} 13. Qc2 {[%emt 0:00:32]} f4 {[%emt 0:00:14]} 14. Nxe4 {[%emt 0:00:10]} cxd5 {[%emt 0:00:11]} 15. Nxf6+ {[%emt 0:00:09]} Bxf6 {[%emt 0:00:10]} 16. Qxg6 {[%emt 0:00:15]} hxg6 {[%emt 0:00:01]} 17. Bxf6 {[%emt 0:00:03]} Nxf6 {[%emt 0:00:07]} 18. cxd5 {[%emt 0:00:04]} Nxd5 {[%emt 0:00:02]} 19. Nd3 {[%emt 0:00:08]} Ne3 {[%emt 0:00:07]} 20. Rfc1 {[%emt 0:00:01]} fxg3 {[%emt 0:00:05]} 21. hxg3 {[%emt 0:00:02]} Bf5 {[%emt 0:00:02]} 22. Kf2 {[%emt 0:00:29]} Ng4+ {[%emt 0:00:01]} 23. fxg4 {[%emt 0:00:03]} Bxd3+ {[%emt 0:00:02]} 24. Ke3 {[%emt 0:00:04]} Ba6 {[%emt 0:00:01]} 25. Bd5+ {[%emt 0:00:04]} Rf7 {[%emt 0:00:05]} 26. Rf1 {[%emt 0:00:01]} Re8+ {[%emt 0:00:03]} 27. Kd4 {[%emt 0:00:10]} Ree7 {[%emt 0:00:02]} 28. Rxf7 {[%emt 0:00:02]} Rxf7 {[%emt 0:00:01]} 29. Rf1 {[%emt 0:00:01]} 1-0

[Event "11th LCC Super Blitz 2019"]
[Site "London"]
[Date "2019.12.08"]
[Round "3.5"]
[White "Gudenas, Motiejus"]
[Black "Marusenko, Petr"]
[Result "1-0"]
[ECO "B10"]
[WhiteElo "1993"]
[BlackElo "2085"]
[Annotator "NA"]
[PlyCount "92"]
[EventDate "2019.12.08"]
[EventType "swiss"]
[EventCountry "ENG"]
[SourceTitle "playchess.com"]
[Source "ChessBase"]
[SourceQuality "1"]
[TimeControl "180+2"]

1. e4 {[%emt 0:00:00]} c6 {[%emt 0:00:00]} 2. b3 {[%emt 0:00:01]} d5 {[%emt 0:00:00]} 3. Bb2 {[%emt 0:00:01]} dxe4 {[%emt 0:00:03]} 4. Nc3 {[%emt 0:00:01]} Nf6 {[%emt 0:00:01]} 5. Nge2 {[%emt 0:00:01]} Bf5 {[%emt 0:00:06]} 6. Ng3 {[%emt 0:00:02]} Bg6 {[%emt 0:00:01]} 7. Qe2 {[%emt 0:00:00]} Nbd7 {[%emt 0:00:24]} 8. Ncxe4 {[%emt 0:00:02]} e6 {[%emt 0:00:01]} 9. h4 {[%emt 0:00:19]} Nxe4 {[%emt 0:00:09]} 10. Nxe4 {[%emt 0:00:02]} Bxe4 {[%emt 0:00:08]} 11. Qxe4 {[%emt 0:00:02]} Nf6 {[%emt 0:00:01]} 12. Qf3 {[%emt 0:00:16]} Be7 {[%emt 0:00:01]} 13. Bd3 {[%emt 0:00:14]} a5 {[%emt 0:00:03]} 14. a4 {[%emt 0:00:02]} Qb6 {[%emt 0:00:10]} 15. g4 {[%emt 0:00:19]} Rg8 {[%emt 0:00:34]} 16. g5 {[%emt 0:00:16]} Nd5 {[%emt 0:00:01]} 17. Bxh7 {[%emt 0:00:21]} Rh8 {[%emt 0:00:01]} 18. Be4 {[%emt 0:00:03]} Rg8 {[%emt 0:00:14]} 19. Bxd5 {[%emt 0:00:26]} cxd5 {[%emt 0:00:04]} 20. g6 {[%emt 0:00:09]} f6 {[%emt 0:00:11]} 21. h5 {[%emt 0:00:04]} O-O-O {[%emt 0:00:04]} 22. O-O-O {[%emt 0:00:07]} Kb8 {[%emt 0:00:02]} 23. Kb1 {[%emt 0:00:01]} Rc8 {[%emt 0:00:07]} 24. h6 {[%emt 0:00:12]} gxh6 {[%emt 0:00:01]} 25. Rxh6 {[%emt 0:00:01]} Qc5 {[%emt 0:00:17]} 26. Qd3 {[%emt 0:00:13]} e5 {[%emt 0:00:02]} 27. f3 {[%emt 0:00:09]} Rc7 {[%emt 0:00:12]} 28. Rdh1 {[%emt 0:00:06]} Rgc8 {[%emt 0:00:02]} 29. Rc1 {[%emt 0:00:03]} Bf8 {[%emt 0:00:10]} 30. Rh7 {[%emt 0:00:02]} Bg7 {[%emt 0:00:02]} 31. Ka2 {[%emt 0:00:08]} Qb6 {[%emt 0:00:09]} 32. Ba3 {[%emt 0:00:03]} Bf8 {[%emt 0:00:11]} 33. Rxc7 {[%emt 0:00:02]} Qxc7 {[%emt 0:00:04]} 34. c3 {[%emt 0:00:06]} Bxa3 {[%emt 0:00:04]} 35. Kxa3 {[%emt 0:00:01]} Rd8 {[%emt 0:00:06]} 36. Kb2 {[%emt 0:00:02]} Qe7 {[%emt 0:00:07]} 37. Rg1 {[%emt 0:00:03]} Qe6 {[%emt 0:00:05]} 38. g7 {[%emt 0:00:03]} f5 {[%emt 0:00:04]} 39. Qb5 {[%emt 0:00:04]} Rg8 {[%emt 0:00:05]} 40. Qxa5 {[%emt 0:00:01]} e4 {[%emt 0:00:03]} 41. fxe4 {[%emt 0:00:03]} dxe4 {[%emt 0:00:03]} 42. Qc5 {[%emt 0:00:06]} f4 {[%emt 0:00:04]} 43. Qg5 {[%emt 0:00:06]} f3 {[%emt 0:00:03]} 44. Qe3 {[%emt 0:00:01]} Qf5 {[%emt 0:00:05]} 45. Re1 {[%emt 0:00:01]} Rxg7 {[%emt 0:00:02]} 46. Qxe4 {[%emt 0:00:01]} Qxe4 {[%emt 0:00:05]} 1-0

[Event "11th LCC Super Blitz 2019"]
[Site "London"]
[Date "2019.12.08"]
[Round "3.6"]
[White "Pappelis, Dimitrios"]
[Black "Arapalea, Daniel-Ionel"]
[Result "1-0"]
[ECO "D02"]
[WhiteElo "2160"]
[BlackElo "1840"]
[Annotator "NA"]
[PlyCount "125"]
[EventDate "2019.12.08"]
[EventType "swiss"]
[EventCountry "ENG"]
[SourceTitle "playchess.com"]
[Source "ChessBase"]
[SourceQuality "1"]
[TimeControl "180+2"]

1. Nf3 {[%emt 0:00:00]} d5 {[%emt 0:00:01]} 2. g3 {[%emt 0:00:00]} Nc6 {[%emt 0:00:02]} 3. d4 {[%emt 0:00:01]} h5 {[%emt 0:00:01]} 4. h4 {[%emt 0:00:03]} e6 {[%emt 0:00:01]} 5. Bg2 {[%emt 0:00:02]} Bd6 {[%emt 0:00:01]} 6. c4 {[%emt 0:00:02]} dxc4 {[%emt 0:00:02]} 7. Nbd2 {[%emt 0:00:01]} Nf6 {[%emt 0:00:08]} 8. Nxc4 {[%emt 0:00:01]} Ng4 {[%emt 0:00:01]} 9. Nxd6+ {[%emt 0:00:21]} cxd6 {[%emt 0:00:02]} 10. O-O {[%emt 0:00:02]} Bd7 {[%emt 0:00:05]} 11. d5 {[%emt 0:00:21]} exd5 {[%emt 0:00:10]} 12. Qxd5 {[%emt 0:00:02]} Be6 {[%emt 0:00:01]} 13. Qg5 {[%emt 0:00:10]} g6 {[%emt 0:00:17]} 14. Qxd8+ {[%emt 0:00:04]} Rxd8 {[%emt 0:00:04]} 15. Bf4 {[%emt 0:00:04]} Nce5 {[%emt 0:00:14]} 16. Rac1 {[%emt 0:00:11]} O-O {[%emt 0:00:10]} 17. Rc7 {[%emt 0:00:08]} Bd5 {[%emt 0:00:05]} 18. Nd2 {[%emt 0:00:26]} Bc6 {[%emt 0:00:39]} 19. Bxc6 {[%emt 0:00:07]} bxc6 {[%emt 0:00:03]} 20. Rxa7 {[%emt 0:00:01]} Nf6 {[%emt 0:00:11]} 21. Rc1 {[%emt 0:00:07]} c5 {[%emt 0:00:03]} 22. Bg5 {[%emt 0:00:07]} Kg7 {[%emt 0:00:04]} 23. Nc4 {[%emt 0:00:14]} Nxc4 {[%emt 0:00:18]} 24. Rxc4 {[%emt 0:00:01]} Rb8 {[%emt 0:00:09]} 25. b3 {[%emt 0:00:11]} Nd5 {[%emt 0:00:08]} 26. e4 {[%emt 0:00:10]} Nb6 {[%emt 0:00:02]} 27. Rc3 {[%emt 0:00:06]} Ra8 {[%emt 0:00:08]} 28. Rb7 {[%emt 0:00:09]} Nc8 {[%emt 0:00:05]} 29. a4 {[%emt 0:00:02]} Ra7 {[%emt 0:00:01]} 30. Rxa7 {[%emt 0:00:05]} Nxa7 {[%emt 0:00:01]} 31. Be7 {[%emt 0:00:02]} Re8 {[%emt 0:00:04]} 32. Bxd6 {[%emt 0:00:03]} Rxe4 {[%emt 0:00:01]} 33. Bxc5 {[%emt 0:00:03]} Nc6 {[%emt 0:00:03]} 34. Re3 {[%emt 0:00:09]} Rg4 {[%emt 0:00:04]} 35. Kf1 {[%emt 0:00:06]} Kf6 {[%emt 0:00:05]} 36. Ke2 {[%emt 0:00:15]} Kf5 {[%emt 0:00:03]} 37. Rf3+ {[%emt 0:00:03]} Ke6 {[%emt 0:00:02]} 38. Re3+ {[%emt 0:00:03]} Kd5 {[%emt 0:00:02]} 39. Ba3 {[%emt 0:00:04]} Nd4+ {[%emt 0:00:01]} 40. Kf1 {[%emt 0:00:07]} g5 {[%emt 0:00:09]} 41. Bb2 {[%emt 0:00:03]} gxh4 {[%emt 0:00:01]} 42. gxh4 {[%emt 0:00:03]} Nc2 {[%emt 0:00:02]} 43. Rd3+ {[%emt 0:00:02]} Kc6 {[%emt 0:00:02]} 44. Rc3+ {[%emt 0:00:01]} Kb6 45. Rxc2 {[%emt 0:00:01]} Rxh4 {[%emt 0:00:01]} 46. Rc4 {[%emt 0:00:02]} Rh1+ {[%emt 0:00:01]} 47. Ke2 {[%emt 0:00:01]} h4 {[%emt 0:00:01]} 48. Be5 {[%emt 0:00:02]} h3 {[%emt 0:00:01]} 49. Rh4 {[%emt 0:00:02]} Rb1 {[%emt 0:00:01]} 50. Rxh3 {[%emt 0:00:02]} Ka5 {[%emt 0:00:02]} 51. Bc3+ {[%emt 0:00:02]} Kb6 {[%emt 0:00:01]} 52. Bd2 {[%emt 0:00:01]} f5 {[%emt 0:00:01]} 53. b4 {[%emt 0:00:01]} Ra1 {[%emt 0:00:01]} 54. Rh6+ {[%emt 0:00:01]} Kb7 {[%emt 0:00:01]} 55. a5 {[%emt 0:00:02]} Ka7 {[%emt 0:00:01]} 56. b5 {[%emt 0:00:01]} Ra2 {[%emt 0:00:01]} 57. Rh7+ {[%emt 0:00:02]} Kb8 {[%emt 0:00:00]} 58. b6 {[%emt 0:00:02]} f4 {[%emt 0:00:01]} 59. f3 {[%emt 0:00:02]} Rb2 {[%emt 0:00:02]} 60. Kd3 {[%emt 0:00:06]} Rb3+ {[%emt 0:00:01]} 61. Kc2 {[%emt 0:00:02]} Rxf3 {[%emt 0:00:01]} 62. a6 {[%emt 0:00:01]} Ra3 {[%emt 0:00:03]} 63. Rh8# {[%emt 0:00:02]} 1-0

[Event "11th LCC Super Blitz 2019"]
[Site "London"]
[Date "2019.12.08"]
[Round "3.6"]
[White "Ismail, Mohammed Aayan"]
[Black "Nettleton, Charlie B"]
[Result "0-1"]
[ECO "A04"]
[WhiteElo "1641"]
[BlackElo "2021"]
[Annotator "NA"]
[PlyCount "60"]
[EventDate "2019.12.08"]
[EventType "swiss"]
[EventCountry "ENG"]
[SourceTitle "playchess.com"]
[Source "ChessBase"]
[SourceQuality "1"]
[TimeControl "180+2"]

1. e4 {[%emt 0:00:00]} e5 {[%emt 0:00:00]} 2. Nf3 {[%emt 0:00:00]} f5 {[%emt 0:00:00]} 3. d3 {[%emt 0:00:01]} Nc6 {[%emt 0:00:03]} 4. Be2 {[%emt 0:00:03]} Nf6 {[%emt 0:00:02]} 5. O-O {[%emt 0:00:09]} d6 {[%emt 0:00:20]} 6. Nc3 {[%emt 0:00:04]} Be7 {[%emt 0:00:02]} 7. Bg5 {[%emt 0:00:06]} O-O {[%emt 0:00:04]} 8. h3 {[%emt 0:00:05]} h6 {[%emt 0:00:09]} 9. Bxf6 {[%emt 0:00:02]} Bxf6 {[%emt 0:00:02]} 10. Nd5 {[%emt 0:00:04]} Ne7 {[%emt 0:00:06]} 11. Nxf6+ {[%emt 0:00:12]} Rxf6 {[%emt 0:00:02]} 12. Qd2 {[%emt 0:00:12]} g5 {[%emt 0:00:03]} 13. Nh2 {[%emt 0:00:17]} Ng6 {[%emt 0:00:04]} 14. g3 {[%emt 0:00:22]} fxe4 {[%emt 0:00:03]} 15. Ng4 {[%emt 0:00:07]} Bxg4 {[%emt 0:00:05]} 16. Bxg4 {[%emt 0:00:02]} exd3 {[%emt 0:00:07]} 17. Qxd3 {[%emt 0:00:01]} Kg7 {[%emt 0:00:28]} 18. Rad1 {[%emt 0:00:07]} Qf8 {[%emt 0:00:02]} 19. Qb3 {[%emt 0:00:08]} b6 {[%emt 0:00:13]} 20. Qc4 {[%emt 0:00:07]} Qf7 {[%emt 0:00:03]} 21. Qe4 {[%emt 0:00:08]} Rf8 {[%emt 0:00:04]} 22. Rd2 {[%emt 0:00:03]} Ne7 {[%emt 0:00:09]} 23. Qb7 {[%emt 0:00:08]} h5 {[%emt 0:00:02]} 24. Bd1 {[%emt 0:00:05]} Nf5 {[%emt 0:00:07]} 25. Kh2 {[%emt 0:00:40]} h4 {[%emt 0:00:03]} 26. g4 {[%emt 0:00:05]} Ng3 {[%emt 0:00:01]} 27. Rg1 {[%emt 0:00:06]} Rxf2+ {[%emt 0:00:02]} 28. Rxf2 {[%emt 0:00:06]} Qxf2+ {[%emt 0:00:02]} 29. Rg2 {[%emt 0:00:18]} Qc5 {[%emt 0:00:10]} 30. c3 {[%emt 0:00:08]} Rf1 {[%emt 0:00:01]} 0-1